fUST/lending_fUST_20241020
["ID","MTS","AMOUNT","RATE_DAILY","PERIOD"]
[340498703,1729354232346,-250.0,0.00012877,2]
[340498705,1729354232356,-463.62471547,0.0001328,2]
[340498707,1729354232367,-463.62471547,0.00013302,2]
[340498710,1729354232378,-463.62471547,0.00013325,2]
[340498712,1729354232388,-463.62471547,0.00013347,2]
[340498713,1729354232397,-300.0,0.00013364,2]
[340498714,1729354232406,-300.0,0.00013364,2]
[340498715,1729354232416,-7228.02636972,0.00013364,2]
[340498716,1729354232425,-13529.18420898,0.00013365,2]
[340498717,1729354232435,-216.12492565,0.00013365,2]
[340498718,1729354232446,-1230.01425477,0.00013365,2]
[340499047,1729354246381,-300.09,0.00012,2]
[340499049,1729354246391,-7161.62911283,0.00013365,2]
[340499051,1729354246402,-50000.0,0.0001337,2]
[340499053,1729354246412,-837.01513026,0.0001337,2]
[340499055,1729354246421,-999.80003999,0.00013379,2]
[340499057,1729354246432,-3256.16529323,0.0001338,2]
[340499059,1729354246442,-500.000001,0.0001338,2]
[340499061,1729354246453,-999.50020992,0.00013429,2]
[340499063,1729354246463,-1000.0,0.00013436,2]
[340499065,1729354246473,-34916.5947497,0.00013438,2]
[340499067,1729354246483,-5188.6008468,0.00013438,2]
[340499069,1729354246494,-69833.1894995,0.00013438,2]
[340499072,1729354246504,-10377.2016936,0.00013438,2]
[340499074,1729354246515,-581.45245,0.00013439,2]
[340499076,1729354246524,-581.45245,0.00013439,2]
[340499078,1729354246534,-151.0,0.00013439,2]
[340499080,1729354246543,-151.0,0.00013439,2]
[340499082,1729354246552,-435.920247,0.00013439,2]
[340499084,1729354246561,-435.920247,0.00013439,2]
[340499086,1729354246570,-231.552602,0.00013448,2]
[340499088,1729354246580,-231.552602,0.00013448,2]
[340499090,1729354246591,-971.338265,0.00013448,2]
[340499092,1729354246602,-1612.962004,0.00013448,2]
[340499094,1729354246612,-151.0,0.00013448,2]
[340499096,1729354246623,-1612.962004,0.00013448,2]
[340499098,1729354246632,-151.0,0.00013448,2]
[340499100,1729354246641,-151.0,0.00013448,2]
[340499102,1729354246651,-2179.98683,0.00013448,2]
[340499104,1729354246660,-2179.98683,0.00013448,2]
[340499106,1729354246670,-151.0,0.00013448,2]
[340499109,1729354246680,-151.0,0.00013448,2]
[340499111,1729354246689,-151.0,0.00013448,2]
[340499113,1729354246699,-470.084414,0.00013448,2]
[340499115,1729354246709,-470.084414,0.00013448,2]
[340499117,1729354246718,-151.0,0.00013448,2]
[340499119,1729354246727,-151.0,0.00013448,2]
[340499121,1729354246737,-1142.195943,0.00013448,2]
[340499123,1729354246747,-1142.195943,0.00013448,2]
[340499125,1729354246757,-581.45245,0.0001345,2]
[340499127,1729354246767,-581.45245,0.0001345,2]
[340499129,1729354246778,-151.0,0.0001345,2]
[340499131,1729354246788,-210.49886,0.0001345,2]
[340499134,1729354246798,-435.920247,0.0001345,2]
[340499136,1729354246809,-435.920247,0.0001345,2]
[340499138,1729354246819,-59994.39586544,0.00013451,2]
[340499140,1729354246832,-9838.79363406,0.00013451,2]
[340499142,1729354246843,-10377.2016936,0.00013451,2]
[340499145,1729354246854,-581.45245,0.00013451,2]
[340499147,1729354246865,-581.45245,0.00013451,2]
[340499149,1729354246875,-151.0,0.00013451,2]
[340499151,1729354246885,-435.920247,0.00013451,2]
[340499153,1729354246895,-435.920247,0.00013451,2]
[340499155,1729354246905,-34425.21273643,0.00013451,2]
[340499163,1729354246968,-491.38201327,0.00013451,2]
[340499165,1729354246978,-5188.6008468,0.00013451,2]
[340499167,1729354246988,-581.45245,0.0001346,2]
[340499169,1729354246998,-581.45245,0.0001346,2]
[340499171,1729354247008,-151.0,0.0001346,2]
[340499173,1729354247018,-435.920247,0.0001346,2]
[340499175,1729354247028,-435.920247,0.0001346,2]
[340499177,1729354247038,-4838.28661287,0.0001346,2]
[340499179,1729354247049,-1688.3,0.0001346,2]
[340499416,1729354944103,10000.0,0.00027,60]
[340499417,1729354958580,8213.9,0.00027,60]
[340499431,1729355111754,152.0,0.000243,60]
[340499437,1729355320542,204802.81009062,0.00021,60]
[340499508,1729355439490,-152.0,0.0001091,2]
[340499509,1729355439500,-248.51,0.00010959,2]
[340499510,1729355439511,-174.319871,0.0001236,2]
[340499511,1729355439523,-87.902731,0.00012452,2]
[340499512,1729355439930,-86.41714,0.00012452,2]
[340499513,1729355439940,-174.319871,0.00012544,2]
[340499514,1729355439950,-174.319871,0.00012636,2]
[340499515,1729355439960,-174.319871,0.00012728,2]
[340499516,1729355439969,-174.319871,0.0001282,2]
[340499517,1729355439979,-1132.6265966,0.00012825,2]
[340499518,1729355439989,-237.5,0.00012877,2]
[340499519,1729355440000,-174.319871,0.00012912,2]
[340499520,1729355440010,-174.319871,0.00013004,2]
[340499521,1729355440020,-300.0,0.0001317,2]
[340499522,1729355440029,-300.0,0.0001317,2]
[340499523,1729355440041,-150.0,0.00013318,2]
[340499524,1729355440051,-1132.6265966,0.00013325,2]
[340499525,1729355440062,-154.54157183,0.0001336,2]
[340499526,1729355440072,-154.54157182,0.00013365,2]
[340499527,1729355440083,-991.47,0.00013369,2]
[340499528,1729355440095,-154.54157182,0.00013369,2]
[340499529,1729355440105,-1854.08286191,0.00013389,2]
[340499530,1729355440116,-809.99225181,0.0001339,2]
[340499531,1729355440126,-8885.3158524,0.00013419,2]
[340499533,1729355440313,-420.07154498,0.0001345,2]
[340499534,1729355440323,-59984.6436353,0.0001345,2]
[340499536,1729355440333,-7264.0411859,0.0001345,2]
[340499538,1729355440342,-89976.9654529,0.00013459,2]
[340499540,1729355440352,-10896.0617788,0.00013459,2]
[340499542,1729355440361,-151.0,0.0001346,2]
[340499544,1729355440371,-151.0,0.0001346,2]
[340499545,1729355440381,-151.0,0.0001346,2]
[340499547,1729355440390,-151.0,0.00013461,2]
[340499549,1729355440400,-29992.3218176,0.00013469,2]
[340499550,1729355440409,-3632.02059295,0.00013469,2]
[340499551,1729355440418,-423.075973,0.00013469,2]
[340499552,1729355440428,-423.075973,0.00013469,2]
[340499553,1729355440437,-151.0,0.00013469,2]
[340499554,1729355440447,-151.0,0.00013469,2]
[340499555,1729355440456,-261.552148,0.00013469,2]
[340499556,1729355440465,-261.552148,0.00013469,2]
[340499557,1729355440475,-261.552148,0.00013469,2]
[340499558,1729355440486,-261.552148,0.00013469,2]
[340499559,1729355440496,-1027.976349,0.00013469,2]
[340499560,1729355440505,-1027.976349,0.00013469,2]
[340499561,1729355440515,-1027.976349,0.00013469,2]
[340499562,1729355440526,-1027.976349,0.00013469,2]
[340499563,1729355440535,-151.0,0.00013469,2]
[340499564,1729355440544,-245.0,0.00013469,2]
[340499565,1729355440554,-253.192353,0.00013469,2]
[340499566,1729355440563,-253.192353,0.00013469,2]
[340499567,1729355440573,-253.192353,0.00013469,2]
[340499568,1729355440582,-253.192353,0.00013469,2]
[340499569,1729355440592,-151.0,0.00013469,2]
[340499570,1729355440602,-151.0,0.00013469,2]
[340499571,1729355440611,-259.503952,0.00013469,2]
[340499572,1729355440621,-208.397342,0.00013469,2]
[340499573,1729355440630,-208.397342,0.00013469,2]
[340499574,1729355440639,-208.397342,0.00013469,2]
[340499575,1729355440650,-208.397342,0.00013469,2]
[340499576,1729355440660,-153.158994,0.00013469,2]
[340499577,1729355440669,-153.158994,0.00013469,2]
[340499578,1729355440679,-153.158994,0.00013469,2]
[340499579,1729355440688,-153.158994,0.00013469,2]
[340499580,1729355440698,-348.87147,0.00013469,2]
[340499581,1729355440707,-348.87147,0.00013469,2]
[340499582,1729355440719,-348.87147,0.00013469,2]
[340499583,1729355440728,-348.87147,0.00013469,2]
[340499584,1729355440739,-151.0,0.00013469,2]
[340499585,1729355440748,-151.0,0.00013469,2]
[340499586,1729355440758,-186.917936,0.00013469,2]
[340499587,1729355440768,-186.917936,0.00013469,2]
[340499588,1729355440777,-186.917936,0.00013469,2]
[340499589,1729355440786,-186.917936,0.00013469,2]
[340499590,1729355440796,-922.771352,0.00013469,2]
[340499591,1729355440807,-922.771352,0.00013469,2]
[340499592,1729355440817,-922.771352,0.00013469,2]
[340499593,1729355440827,-922.771352,0.00013469,2]
[340499594,1729355440836,-253.833375,0.00013469,2]
[340499595,1729355440846,-243.146212,0.00013469,2]
[340499596,1729355440855,-253.833375,0.00013469,2]
[340499597,1729355440864,-243.146212,0.00013469,2]
[340499598,1729355440874,-253.833375,0.00013469,2]
[340499599,1729355440883,-253.833375,0.00013469,2]
[340499600,1729355440892,-243.146212,0.00013469,2]
[340499601,1729355440902,-243.146212,0.00013469,2]
[340499602,1729355440911,-1451.665804,0.00013469,2]
[340499603,1729355440920,-1451.665804,0.00013469,2]
[340499604,1729355440930,-1451.665804,0.00013469,2]
[340499605,1729355440939,-1451.665804,0.00013469,2]
[340499606,1729355440948,-1961.988147,0.00013469,2]
[340499607,1729355440957,-1961.988147,0.00013469,2]
[340499608,1729355440968,-1961.988147,0.00013469,2]
[340499609,1729355440977,-1961.988147,0.00013469,2]
[340499610,1729355440987,-219.0,0.0001347,2]
[340499611,1729355440996,-151.0,0.0001347,2]
[340499612,1729355441005,-151.0,0.0001347,2]
[340499613,1729355441014,-151.0,0.0001347,2]
[340499614,1729355441023,-151.0,0.0001347,2]
[340499615,1729355441033,-151.0,0.0001347,2]
[340499616,1729355441042,-151.0,0.0001347,2]
[340499617,1729355441050,-151.0,0.0001347,2]
[340499618,1729355441061,-59984.6436353,0.0001347,2]
[340499619,1729355441070,-10896.0617788,0.0001347,2]
[340499620,1729355441079,-500.0,0.00013472,2]
[340499621,1729355441089,-423.075973,0.00013472,2]
[340499622,1729355441098,-423.075973,0.00013472,2]
[340499623,1729355441107,-151.0,0.00013472,2]
[340499624,1729355441116,-208.397342,0.00013472,2]
[340499625,1729355441125,-208.397342,0.00013472,2]
[340499626,1729355441135,-153.158994,0.00013472,2]
[340499627,1729355441144,-153.158994,0.00013472,2]
[340499628,1729355441154,-186.917936,0.00013472,2]
[340499629,1729355441163,-186.917936,0.00013472,2]
[340499630,1729355441173,-243.146212,0.00013472,2]
[340499631,1729355441182,-243.146212,0.00013472,2]
[340499632,1729355441192,-500.0,0.00013473,2]
[340499633,1729355441201,-253.192353,0.00013473,2]
[340499634,1729355441211,-253.192353,0.00013473,2]
[340499635,1729355441223,-400.0,0.00013478,2]
[340499636,1729355441233,-151.0,0.00013478,2]
[340499637,1729355441243,-261.552148,0.00013478,2]
[340499638,1729355441253,-261.552148,0.00013478,2]
[340499639,1729355441263,-1027.976349,0.00013478,2]
[340499640,1729355441273,-1027.976349,0.00013478,2]
[340499641,1729355441284,-348.87147,0.00013478,2]
[340499642,1729355441294,-348.87147,0.00013478,2]
[340499643,1729355441304,-151.0,0.00013478,2]
[340499644,1729355441315,-922.771352,0.00013478,2]
[340499645,1729355441325,-922.771352,0.00013478,2]
[340499646,1729355441335,-253.833375,0.00013478,2]
[340499647,1729355441345,-253.833375,0.00013478,2]
[340499648,1729355441354,-1451.665804,0.00013478,2]
[340499649,1729355441363,-1451.665804,0.00013478,2]
[340499650,1729355441373,-1961.988147,0.00013478,2]
[340499651,1729355441382,-1961.988147,0.00013478,2]
[340499652,1729355441391,-412.3288102,0.00013479,2]
[340499653,1729355441401,-12132.81148337,0.00013479,2]
[340499654,1729355441410,-151.0,0.00013479,2]
[340499655,1729355441420,-151.0,0.00013479,2]
[340499656,1729355441430,-151.0,0.00013479,2]
[340499657,1729355441439,-151.0,0.00013479,2]
[340499658,1729355441448,-151.0,0.00013479,2]
[340499659,1729355441458,-6764.59210448,0.0001348,2]
[340499660,1729355441467,-151.0,0.0001348,2]
[340499661,1729355441477,-151.0,0.0001348,2]
[340499662,1729355441486,-191.43143,0.0001348,2]
[340499663,1729355441496,-423.075973,0.0001348,2]
[340499664,1729355441506,-423.075973,0.0001348,2]
[340499665,1729355441515,-423.075973,0.0001348,2]
[340499666,1729355441525,-423.075973,0.0001348,2]
[340499667,1729355441535,-423.075973,0.0001348,2]
[340499668,1729355441545,-423.075973,0.0001348,2]
[340499669,1729355441554,-151.0,0.0001348,2]
[340499670,1729355441564,-198.573256,0.0001348,2]
[340499671,1729355441573,-261.552148,0.0001348,2]
[340499672,1729355441582,-261.552148,0.0001348,2]
[340499673,1729355441592,-261.552148,0.0001348,2]
[340499674,1729355441602,-261.552148,0.0001348,2]
[340499675,1729355441612,-261.552148,0.0001348,2]
[340499676,1729355441621,-261.552148,0.0001348,2]
[340499677,1729355441630,-1027.976349,0.0001348,2]
[340499678,1729355441640,-1027.976349,0.0001348,2]
[340499679,1729355441650,-1027.976349,0.0001348,2]
[340499680,1729355441659,-1027.976349,0.0001348,2]
[340499681,1729355441669,-1027.976349,0.0001348,2]
[340499682,1729355441678,-1027.976349,0.0001348,2]
[340499683,1729355441688,-253.192353,0.0001348,2]
[340499684,1729355441697,-253.192353,0.0001348,2]
[340499685,1729355441707,-253.192353,0.0001348,2]
[340499686,1729355441716,-253.192353,0.0001348,2]
[340499687,1729355441726,-253.192353,0.0001348,2]
[340499688,1729355441735,-253.192353,0.0001348,2]
[340499689,1729355441745,-151.0,0.0001348,2]
[340499690,1729355441755,-165.761141,0.0001348,2]
[340499691,1729355441765,-208.397342,0.0001348,2]
[340499692,1729355441774,-208.397342,0.0001348,2]
[340499693,1729355441784,-208.397342,0.0001348,2]
[340499694,1729355441794,-208.397342,0.0001348,2]
[340499695,1729355441805,-208.397342,0.0001348,2]
[340499696,1729355441815,-208.397342,0.0001348,2]
[340499697,1729355441824,-153.158994,0.0001348,2]
[340499698,1729355441834,-153.158994,0.0001348,2]
[340499699,1729355441843,-153.158994,0.0001348,2]
[340499700,1729355441853,-153.158994,0.0001348,2]
[340499701,1729355441862,-153.158994,0.0001348,2]
[340499702,1729355441871,-153.158994,0.0001348,2]
[340499703,1729355441880,-348.87147,0.0001348,2]
[340499704,1729355441890,-348.87147,0.0001348,2]
[340499705,1729355441899,-348.87147,0.0001348,2]
[340499706,1729355441909,-348.87147,0.0001348,2]
[340499707,1729355441918,-348.87147,0.0001348,2]
[340499708,1729355441927,-348.87147,0.0001348,2]
[340499709,1729355441938,-199.960694,0.0001348,2]
[340499710,1729355441947,-186.917936,0.0001348,2]
[340499711,1729355441957,-186.917936,0.0001348,2]
[340499712,1729355441967,-186.917936,0.0001348,2]
[340499713,1729355441978,-186.917936,0.0001348,2]
[340499714,1729355441987,-186.917936,0.0001348,2]
[340499715,1729355441998,-186.917936,0.0001348,2]
[340499716,1729355442007,-922.771352,0.0001348,2]
[340499717,1729355442017,-922.771352,0.0001348,2]
[340499718,1729355442028,-922.771352,0.0001348,2]
[340499719,1729355442039,-922.771352,0.0001348,2]
[340499720,1729355442051,-922.771352,0.0001348,2]
[340499721,1729355442061,-922.771352,0.0001348,2]
[340499722,1729355442070,-151.0,0.0001348,2]
[340499723,1729355442080,-253.833375,0.0001348,2]
[340499724,1729355442090,-253.833375,0.0001348,2]
[340499725,1729355442100,-253.833375,0.0001348,2]
[340499726,1729355442111,-243.146212,0.0001348,2]
[340499727,1729355442121,-243.146212,0.0001348,2]
[340499728,1729355442131,-243.146212,0.0001348,2]
[340499729,1729355442141,-253.833375,0.0001348,2]
[340499730,1729355442151,-253.833375,0.0001348,2]
[340499731,1729355442162,-243.146212,0.0001348,2]
[340499732,1729355442171,-253.833375,0.0001348,2]
[340499733,1729355442181,-243.146212,0.0001348,2]
[340499734,1729355442191,-243.146212,0.0001348,2]
[340499735,1729355442202,-1451.665804,0.0001348,2]
[340499736,1729355442212,-1451.665804,0.0001348,2]
[340499737,1729355442225,-893.53206744,0.0001348,2]
[340499738,1729355442256,-558.13373656,0.0001348,2]
[340499739,1729355442265,-521.62385694,0.0001348,2]
[340499740,1729355442278,-863.74696695,0.0001348,2]
[340499741,1729355442363,-66.29498011,0.0001348,2]
[340499742,1729355442373,-1451.665804,0.0001348,2]
[340499743,1729355442382,-1451.665804,0.0001348,2]
[340499744,1729355442393,-1961.988147,0.0001348,2]
[340499745,1729355442409,-1961.988147,0.0001348,2]
[340499746,1729355442426,-1961.988147,0.0001348,2]
[340499747,1729355442436,-1961.988147,0.0001348,2]
[340499748,1729355442448,-1961.988147,0.0001348,2]
[340499749,1729355442459,-1961.988147,0.0001348,2]
[340499750,1729355442469,-176.599231,0.0001348,2]
[340499751,1729355442480,-10896.0617788,0.0001348,2]
[340499752,1729355442490,-151.0,0.0001349,2]
[340499753,1729355442501,-423.075973,0.0001349,2]
[340499754,1729355442511,-423.075973,0.0001349,2]
[340499755,1729355442522,-423.075973,0.0001349,2]
[340499756,1729355442533,-423.075973,0.0001349,2]
[340499757,1729355442544,-261.552148,0.0001349,2]
[340499758,1729355442557,-261.552148,0.0001349,2]
[340499759,1729355442567,-261.552148,0.0001349,2]
[340499760,1729355442577,-261.552148,0.0001349,2]
[340499761,1729355442588,-1027.976349,0.0001349,2]
[340499762,1729355442599,-1027.976349,0.0001349,2]
[340499763,1729355442610,-1027.976349,0.0001349,2]
[340499764,1729355442623,-1027.976349,0.0001349,2]
[340499765,1729355442634,-253.192353,0.0001349,2]
[340499766,1729355442644,-253.192353,0.0001349,2]
[340499767,1729355442655,-253.192353,0.0001349,2]
[340499768,1729355442668,-253.192353,0.0001349,2]
[340499769,1729355442679,-208.397342,0.0001349,2]
[340499770,1729355442690,-208.397342,0.0001349,2]
[340499771,1729355442700,-208.397342,0.0001349,2]
[340499772,1729355442711,-208.397342,0.0001349,2]
[340499773,1729355442723,-153.158994,0.0001349,2]
[340499774,1729355442735,-153.158994,0.0001349,2]
[340499775,1729355442746,-153.158994,0.0001349,2]
[340499776,1729355442759,-153.158994,0.0001349,2]
[340499777,1729355442771,-29056.1647436,0.0001349,2]
[340499778,1729355442782,-348.87147,0.0001349,2]
[340499779,1729355442794,-348.87147,0.0001349,2]
[340499780,1729355442805,-348.87147,0.0001349,2]
[340499781,1729355442817,-348.87147,0.0001349,2]
[340499782,1729355442826,-186.917936,0.0001349,2]
[340499783,1729355442837,-186.917936,0.0001349,2]
[340499784,1729355442848,-186.917936,0.0001349,2]
[340499785,1729355442859,-186.917936,0.0001349,2]
[340499786,1729355442871,-922.771352,0.0001349,2]
[340499787,1729355442882,-922.771352,0.0001349,2]
[340499788,1729355442893,-922.771352,0.0001349,2]
[340499789,1729355442905,-922.771352,0.0001349,2]
[340499790,1729355442915,-151.0,0.0001349,2]
[340499791,1729355442926,-151.0,0.0001349,2]
[340499792,1729355442935,-253.833375,0.0001349,2]
[340499793,1729355442945,-253.833375,0.0001349,2]
[340499794,1729355442957,-243.146212,0.0001349,2]
[340499795,1729355442969,-243.146212,0.0001349,2]
[340499796,1729355442981,-253.833375,0.0001349,2]
[340499798,1729355442992,-253.833375,0.0001349,2]
[340499799,1729355443005,-243.146212,0.0001349,2]
[340499800,1729355443014,-243.146212,0.0001349,2]
[340499801,1729355443024,-1451.665804,0.0001349,2]
[340499802,1729355443034,-1451.665804,0.0001349,2]
[340499803,1729355443044,-1451.665804,0.0001349,2]
[340499804,1729355443054,-1451.665804,0.0001349,2]
[340499805,1729355443066,-1961.988147,0.0001349,2]
[340499806,1729355443076,-1961.988147,0.0001349,2]
[340499807,1729355443087,-1961.988147,0.0001349,2]
[340499808,1729355443097,-1961.988147,0.0001349,2]
[340499809,1729355443106,-451.26893419,0.00013499,2]
[340499810,1729355443116,-3614.01318486,0.000135,2]
[340499811,1729355443125,-31523.25012014,0.000135,2]
[340499841,1729355448667,-207.1,0.00010959,2]
[340499842,1729355448677,-94.9,0.000135,2]
[340499938,1729356634651,-300.0,0.00010958,2]
[340499939,1729356634661,-579.6,0.00010959,2]
[340499941,1729356634671,-483.0,0.00010959,2]
[340499942,1729356634680,-402.5,0.00010959,2]
[340499944,1729356634690,-335.42,0.00010959,2]
[340499945,1729356634699,-279.51,0.00010959,2]
[340499946,1729356634708,-232.93,0.00010959,2]
[340499947,1729356634718,-194.11,0.00010959,2]
[340499948,1729356634729,-161.76,0.00010959,2]
[340499949,1729356634738,-808.8,0.00010959,2]
[340499950,1729356634749,-191.655272,0.00011508,2]
[340499951,1729356634759,-191.655272,0.00011539,2]
[340499953,1729356634769,-191.655272,0.00011571,2]
[340499955,1729356634780,-191.655272,0.00011602,2]
[340499956,1729356634790,-671.3,0.00011632,2]
[340499957,1729356634800,-191.655272,0.00011634,2]
[340499958,1729356634810,-191.655272,0.00011665,2]
[340499959,1729356634820,-191.655272,0.00011697,2]
[340499960,1729356634832,-191.655272,0.00011729,2]
[340499961,1729356634843,-191.655272,0.0001176,2]
[340499962,1729356634853,-191.655272,0.00011792,2]
[340499963,1729356634863,-191.655272,0.00011823,2]
[340499964,1729356634872,-191.655272,0.00011855,2]
[340499965,1729356634881,-191.655272,0.00011886,2]
[340499966,1729356634891,-190.96106206,0.00011918,2]
[340500003,1729356639768,-0.69420994,0.00011918,2]
[340500005,1729356639778,-191.655272,0.0001195,2]
[340500007,1729356639788,-191.655272,0.00011981,2]
[340500009,1729356639797,-191.655272,0.00012013,2]
[340500011,1729356639807,-191.655272,0.00012044,2]
[340500013,1729356639817,-191.655272,0.00012076,2]
[340500015,1729356639827,-191.655272,0.00012107,2]
[340500017,1729356639837,-280.04769666,0.00012182,2]
[340500019,1729356639846,-4021.25594757,0.00012182,2]
[340500021,1729356639858,-12304.81153383,0.00012182,2]
[340500024,1729356639870,-8573.9325186,0.00012182,2]
[340500026,1729356639880,-452.9247188,0.00012478,2]
[340500028,1729356639890,-306.0,0.00012752,2]
[340500030,1729356639899,-2446.4734484,0.00012825,2]
[340500032,1729356639908,-225.625,0.00012877,2]
[340500034,1729356639918,-153.0,0.000133,2]
[340500036,1729356639930,-153.0,0.000133,2]
[340500038,1729356639939,-2446.4734484,0.00013325,2]
[340500040,1729356639949,-728.99302662,0.0001339,2]
[340500042,1729356639958,-80366.5186214,0.0001346,2]
[340500044,1729356639971,-293048.052856,0.0001346,2]
[340500046,1729356639980,-151.0,0.0001347,2]
[340500048,1729356639990,-184.55427,0.0001347,2]
[340500050,1729356640000,-184.55427,0.0001347,2]
[340500052,1729356640010,-22271.18509789,0.0001347,2]
[340500055,1729356640019,-11543.49350491,0.0001347,2]
[340500057,1729356640029,-120549.777932,0.0001347,2]
[340500059,1729356640039,-293048.052856,0.0001347,2]
[340500061,1729356640048,-500.0,0.00013473,2]
[340500063,1729356640058,-234.91838,0.00013479,2]
[340500065,1729356640067,-184.55427,0.00013479,2]
[340500067,1729356640079,-184.55427,0.00013479,2]
[340500069,1729356640088,-80366.5186214,0.0001348,2]
[340500071,1729356640098,-36392.32081384,0.00013487,2]
[340500074,1729356640115,-58607.67918616,0.00013487,2]
[340500076,1729356640124,-290.33316,0.0001349,2]
[340500078,1729356640134,-151.0,0.0001349,2]
[340500080,1729356640144,-290.33316,0.0001349,2]
[340500082,1729356640153,-290.33316,0.0001349,2]
[340500084,1729356640162,-151.0,0.0001349,2]
[340500086,1729356640172,-151.0,0.0001349,2]
[340500088,1729356640183,-151.0,0.0001349,2]
[340500090,1729356640192,-151.0,0.0001349,2]
[340500092,1729356640202,-151.0,0.0001349,2]
[340500094,1729356640212,-151.0,0.0001349,2]
[340500096,1729356640222,-151.0,0.0001349,2]
[340500098,1729356640231,-151.0,0.0001349,2]
[340500100,1729356640240,-151.0,0.0001349,2]
[340500102,1729356640250,-151.0,0.0001349,2]
[340500105,1729356640259,-151.0,0.0001349,2]
[340500107,1729356640269,-151.0,0.0001349,2]
[340500108,1729356640278,-151.0,0.0001349,2]
[340500111,1729356640288,-151.0,0.0001349,2]
[340500113,1729356640297,-151.0,0.0001349,2]
[340500115,1729356640306,-151.0,0.0001349,2]
[340500117,1729356640316,-151.0,0.0001349,2]
[340500119,1729356640327,-151.0,0.0001349,2]
[340500121,1729356640336,-151.0,0.0001349,2]
[340500123,1729356640346,-151.0,0.0001349,2]
[340500125,1729356640355,-151.0,0.0001349,2]
[340500127,1729356640364,-392.397629,0.0001349,2]
[340500129,1729356640374,-205.59527,0.0001349,2]
[340500131,1729356640383,-205.59527,0.0001349,2]
[340500133,1729356640393,-392.397629,0.0001349,2]
[340500135,1729356640402,-205.59527,0.0001349,2]
[340500137,1729356640411,-392.397629,0.0001349,2]
[340500139,1729356640421,-205.59527,0.0001349,2]
[340500141,1729356640430,-205.59527,0.0001349,2]
[340500143,1729356640439,-392.397629,0.0001349,2]
[340500145,1729356640448,-392.397629,0.0001349,2]
[340500147,1729356640458,-392.397629,0.0001349,2]
[340500149,1729356640468,-205.59527,0.0001349,2]
[340500151,1729356640477,-151.0,0.0001349,2]
[340500153,1729356640486,-209119.51254494,0.000135,2]
[340500405,1729356642885,-7172.75907927,0.000135,2]
[340500510,1729357832336,-300.0,0.00012095,2]
[340500511,1729357832347,-62.051672,0.00012096,2]
[340500579,1729357838331,-885.24657141,0.00012096,2]
[340500729,1729357840046,-23952.70175659,0.00012096,2]
[340500731,1729357840056,-168.875772,0.00012251,2]
[340500733,1729357840065,-168.875772,0.00012304,2]
[340500735,1729357840074,-168.875772,0.00012357,2]
[340500737,1729357840083,-168.875772,0.00012411,2]
[340500739,1729357840093,-168.875772,0.00012464,2]
[340500741,1729357840103,-168.875772,0.00012517,2]
[340500743,1729357840112,-168.875772,0.0001257,2]
[340500745,1729357840122,-168.875772,0.00012623,2]
[340500747,1729357840132,-168.875772,0.00012677,2]
[340500749,1729357840141,-168.875772,0.0001273,2]
[340500752,1729357840152,-168.875772,0.00012783,2]
[340500753,1729357840162,-1712.5314138,0.00012825,2]
[340500756,1729357840171,-168.875772,0.00012836,2]
[340500757,1729357840180,-250.0,0.00012877,2]
[340500759,1729357840193,-168.875772,0.0001289,2]
[340500761,1729357840202,-420.0,0.00013276,2]
[340500763,1729357840211,-186.69846444,0.00013325,2]
[340500766,1729357840221,-1712.5314138,0.00013325,2]
[340500767,1729357840231,-634.14973909,0.0001337,2]
[340500768,1729357840240,-656.09372394,0.00013373,2]
[340500769,1729357840249,-52479.7697956,0.00013451,2]
[340500770,1729357840259,-52479.7697956,0.0001346,2]